Cogmind - Beta 13 @@@ ROGUE MODE // 2024.03.31 @ 13:20:48 Player: Yovador Result: Destroyed by IX-2W6(R) with Subdweller Beam Cannon Performance ------------- Evolutions (0) 0 Regions Visited (3) 600 Robots Destroyed (21) 105 Value Destroyed (530) 530 Prototype IDs (0) 0 Alien Tech Used (0) 0 Bonus (0) 0 TOTAL SCORE: 1235 Bonus ------- None Cogmind --------- Core Integrity 0/250 Matter 280/300 Energy 100/100 System Corruption 1% Temperature Cool (9) Movement Walking (400) Ox4 Location -10/Subcaves Parts ------- > --- POWER (1) -------- (None) > --- PROPULSION (2) --- Aluminum Leg > --- UTILITY (2) ------ High-capacity Storage Unit Signal Interpreter > --- WEAPON (2) ------- Rocket Launcher > --- INVENTORY (20) --- Ion Engine Light Ion Engine Light Ion Engine Wheel Wheel Wheel Flight Unit Heat Sink Medium Battery (150) Terrain Scanner Terrain Scan Processor Seismic Detector Targeting Computer Core Shielding Weapon Shielding Light Cannon Grenade Launcher Mining Claw Peak State ------------ > --- POWER ------------ Light Nuclear Core > --- PROPULSION ------- Aluminum Leg Aluminum Leg > --- UTILITY ---------- High-capacity Storage Unit Core Shielding > --- WEAPON ----------- Assault Rifle Rocket Launcher > --- INVENTORY -------- Ion Engine Light Ion Engine Light Ion Engine Wheel Wheel Wheel Heat Sink Medium Battery Signal Interpreter Terrain Scan Processor Seismic Detector Targeting Computer Weapon Shielding Light Cannon Grenade Launcher Mining Claw [Rating: 11] Favorites ----------- Power Light Nuclear Core Engine Light Ion Engine Power Core Light Nuclear Core Propulsion Aluminum Leg Leg Aluminum Leg Wheel Wheel Utility High-capacity Storage Unit Device Terrain Scanner Storage High-capacity Storage Unit Processor Signal Interpreter Protection Core Shielding Weapon Assault Rifle Ballistic Gun Assault Rifle Ballistic Cannon Light Cannon Launcher Rocket Launcher Slashing Weapon Mining Claw Build | -11 -10 -10 -10 ------- Run | Yrd Mat Min Sub Slots Evolved . | . . . . Power . | . . . . Propulsion . | . . . . Utility . | . . . . Weapon . | . . . . Parts Attached 29 | 5 15 9 . Power 4 | 1 2 1 . Engine 3 | 1 2 . . Core 1 | . . 1 . Reactor . | . . . . Propulsion 6 | 2 4 . . Treads . | . . . . Leg 4 | . 4 . . Wheel 2 | 2 . . . Hover . | . . . . Flight . | . . . . Utility 7 | . 4 3 . Device 1 | . . 1 . Storage 2 | . 2 . . Processor 1 | . . 1 . Hackware . | . . . . Protection 3 | . 2 1 . Artifact . | . . . . Weapon 12 | 2 5 5 . Energy Gun . | . . . . Energy Cannon . | . . . . Ballistic Gun 4 | 2 1 1 . Ballistic Cannon 2 | . 2 . . Launcher 3 | . 1 2 . Special Weapon . | . . . . Impact Weapon . | . . . . Slashing Weapon 3 | . 1 2 . Piercing Weapon . | . . . . Special Melee Weapon . | . . . . Unidentified Prototypes . | . . . . Parts Lost 5 | . 2 . 3 Power 2 | . 1 . 1 Propulsion 2 | . 1 . 1 Utility . | . . . . Weapon 1 | . . . 1 Highest Loss Streak 3 | . 1 . 3 To Critical Strikes . | . . . . Average Slot Usage (%) 98 | . 98 100 100 Engine 8 | . 13 . . Core 5 | . . 13 14 Leg 24 | . 22 28 28 Wheel 2 | . 4 . . Storage 14 | . 14 14 14 Protection 12 | . 12 13 . Ballistic Gun 14 | . 15 12 14 Ballistic Cannon 9 | . 9 8 . Launcher 4 | . 2 6 14 Naked Turns . | . . . . Heaviest Build 52 | 7 51 52 51 Greatest Support 20 | 20 20 20 20 Greatest Overweight (x) 4 | 2 4 2 2 Average Overweight (x) 1 | . 1 2 2 Largest Inventory Capacity 20 | 5 20 20 20 Average Capacity 18 | 5 19 20 20 Most Carried 19 | 3 10 19 18 Average Carried 9 | . 7 14 18 Final Capacity 20 | 5 20 20 20 Final Carried 18 | 2 9 18 18 Class Distribution -------------------- 100% | Mutant Dominant Class ---------------- Mutant | -10/Materials Mutant | -10/Mines Mutant | -10/Subcaves Resources | -11 -10 -10 -10 ----------- Run | Yrd Mat Min Sub Matter Collected 1040 | 262 445 333 . Remotely . | . . . . Salvage Created 647 | 33 494 96 24 Parts 35 | 1 27 3 4 Haulers Intercepted . | . . . . Recyclers Shooed . | . . . . Parts Field Recycled . | . . . . Retrieved Matter . | . . . . Parts Self-Destructed . | . . . . Prevented . | . . . . Kills | -11 -10 -10 -10 ------- Run | Yrd Mat Min Sub Combat Hostiles Destroyed 17 | 1 10 5 1 Melee 4 | . 2 2 . Guns 9 | 1 7 1 . Cannons 1 | . . 1 . AOE 3 | . 1 1 1 Classes Destroyed 7 | 1 4 1 1 Worker 1 | . 1 . . Recycler 2 | . 2 . . Watcher 3 | . 3 . . Swarmer 4 | . 3 1 . Grunt 10 | 1 7 2 . Subdweller 1 | . . . 1 Assembled 2 | . . 2 . Best Kill Streak 4 | 1 4 1 1 Combat Bots Only 3 | 1 3 1 1 Max Kills in Single Turn 2 | 1 2 1 1 Gunslinging . | . . . . Exploded 1 | . 1 1 1 Melee 1 | . 1 1 . Uniques/NPCs Destroyed . | . . . . Combat | -11 -10 -10 -10 -------- Run | Yrd Mat Min Sub Hostile Shots Fired 98 | 3 54 35 6 Missed 25 | . 15 8 2 Damage Taken 1123 | 35 591 377 120 Core 255 | 23 102 68 62 Absorbed by Shields . | . . . . Redirected to Shielding 54 | . 40 14 . Core Remaining (%) 90 | 90 . . . Volleys Fired 55 | 2 36 15 2 Largest 2 | 2 2 2 2 Hottest 65 | 40 55 65 53 Shots Fired 104 | 4 71 25 4 Gun 59 | 4 41 12 2 Cannon 34 | . 23 11 . Launcher 11 | . 7 2 2 Special . | . . . . Kinetic 93 | 4 64 23 2 Thermal . | . . . . Explosive 11 | . 7 2 2 Electromagnetic . | . . . . Robot Hit Streak 7 | 1 7 6 3 Robot Miss Streak 5 | 1 5 3 . Penetration Max . | . . . . Secondary Targets 1 | . 1 . . Max Gunslinging Chain 1 | . 1 . . Shots Hit Robots 57 | 2 38 15 2 Core Hits 36 | 2 25 7 2 Critical Kills . | . . . . Critical Parts Destroyed . | . . . . Critical Strikes . | . . . . Melee Attacks 9 | . 5 4 . Impact . | . . . . Slashing 9 | . 5 4 . Piercing . | . . . . Sneak Attacks . | . . . . Combat Hostiles . | . . . . Follow-up Attacks . | . . . . Damage Inflicted 1296 | 25 892 272 107 Guns 367 | 25 253 75 14 Cannons 344 | . 240 104 . Explosions 432 | . 302 37 93 Melee 149 | . 95 54 . Ramming 4 | . 2 2 . Kinetic 711 | 25 493 179 14 Thermal . | . . . . Explosive 432 | . 302 37 93 Electromagnetic . | . . . . Impact . | . . . . Slashing 149 | . 95 54 . Piercing . | . . . . Highest Corruption 1 | . 1 1 1 Average Corruption 1 | . 1 1 1 Corruption Purged . | . . . . Corruption Blocked . | . . . . Effects 25 | . 11 13 1 Message Errors 3 | . 2 1 . Matter Fused 11 | . 6 4 1 Heat Flow Errors 2 | . 1 1 . Energy Discharges 4 | . 2 2 . Data Loss (minor) 3 | . . 3 . Data Loss (major) 1 | . . 1 . Weapon Failures 1 | . . 1 . Overload Shots . | . . . . Overflow Damage 18 | . 18 . . Projectiles . | . . . . Explosions 18 | . 18 . . Melee . | . . . . Knockbacks 6 | . 4 2 . Impact . | . . . . Kinetic 6 | . 4 2 . Secondary . | . . . . Self-Inflicted Damage 57 | . 53 . 4 Shots 3 | . 2 . 1 Rammed . | . . . . Targets Rammed 2 | . 1 1 . Kicked 2 | . 1 1 . Crushed . | . . . . Highest Temperature 242 | . 145 242 . Average Temperature 38 | . 22 53 . Received Heat Transfer 336 | 18 210 72 36 Siege Activations . | . . . . Robots Corrupted . | . . . . Combat Hostiles . | . . . . Parts Fried . | . . . . Impact Corruptions . | . . . . Robots Melted . | . . . . Combat Hostiles . | . . . . Parts Melted . | . . . . Heat Transferred . | . . . . Parts Sabotaged . | . . . . Parts Stolen . | . . . . Parts Stripped . | . . . . Power Chain Reactions . | . . . . Alert | -11 -10 -10 -10 ------- Run | Yrd Mat Min Sub Peak Influence 209 | 20 209 50 . Initial 13 | . 13 . . Average 29 | 13 40 16 . Maximum Alert Level 1 | . 1 . . Low Security (%) 99 | 100 98 100 . Level 1 . | . 1 . . Level 2 . | . . . . Level 3 . | . . . . Level 4 . | . . . . Level 5 . | . . . . High Security . | . . . . Max Security . | . . . . Squads Dispatched 3 | . 3 . . Investigation 3 | . 3 . . Extermination . | . . . . Reinforcement . | . . . . Assault . | . . . . Garrison . | . . . . Intercept . | . . . . Searches Triggered . | . . . . Construction Impeded . | . . . . Haulers Reinforced . | . . . . Active Scanning Responses . | . . . . Cargo Convoy Interrupts . | . . . . Stealth | -11 -10 -10 -10 --------- Run | Yrd Mat Min Sub Distress Signals 1 | . 1 . . Communications Jammed . | . . . . Distress Signals . | . . . . Times Spotted 29 | 1 19 7 2 Peak Tracking Total 3 | 1 3 3 2 Tactical Retreats 1 | . . 1 . Traps | -11 -10 -10 -10 ------- Run | Yrd Mat Min Sub Traps Triggered 3 | . 3 . . Indirectly . | . . . . Trap Hack Attempts . | . . . . Triggered . | . . . . Disarmed . | . . . . Reprogrammed . | . . . . Reused . | . . . . Traps Extracted . | . . . . Installed . | . . . . Triggered . | . . . . Machines | -11 -10 -10 -10 ---------- Run | Yrd Mat Min Sub Machines Disabled 1 | . 1 . . Max in Single Turn 1 | . 1 . . Machines Repaired . | . . . . Machines Dismantled . | . . . . Machines Sabotaged . | . . . . Overloaded Fab Kills . | . . . . Hacking | -11 -10 -10 -10 --------- Run | Yrd Mat Min Sub Machines Accessed 5 | . 5 . . Terminals 3 | . 3 . . Fabricators . | . . . . Repair Stations . | . . . . Recycling Units 2 | . 2 . . Scanalyzers . | . . . . Garrison Access . | . . . . Total Hacks 22 | . 22 . . Successful 11 | . 11 . . Failed 11 | . 11 . . Catastrophic . | . . . . Database Lockouts . | . . . . Manual . | . . . . Terminals 16 | . 16 . . Fabricators . | . . . . Repair Stations . | . . . . Recycling Units 6 | . 6 . . Scanalyzers . | . . . . Garrison Access . | . . . . Terminal Hacks 7 | . 7 . . Record 5 | . 5 . . Alert Level 1 | . 1 . . Recall Investigation 1 | . 1 . . Fabricator Hacks . | . . . . Repair Station Hacks . | . . . . Recycling Unit Hacks 4 | . 4 . . Recycle Component 1 | . 1 . . Process 1 | . 1 . . Report Inventory 1 | . 1 . . Retrieve Components 1 | . 1 . . Scanalyzer . | . . . . Garrison Access Hacks . | . . . . Unauthorized Hacks . | . . . . Terminals . | . . . . Fabricators . | . . . . Repair Stations . | . . . . Recycling Units . | . . . . Scanalyzers . | . . . . Garrison Access . | . . . . Data Cores Recovered . | . . . . Used . | . . . . Hacking Detections 4 | . 4 . . Full Trace Events 3 | . 3 . . Feedback Events . | . . . . Feedback Blocked . | . . . . Robot Schematics Acquired . | . . . . Robots Built . | . . . . Authchips . | . . . . Time . | . . . . Total Robot Build Rating . | . . . . Part Schematics Acquired . | . . . . Parts Built . | . . . . Authchips . | . . . . Time . | . . . . Total Part Build Rating . | . . . . Parts Repaired . | . . . . Time . | . . . . Parts Recycled 1 | . 1 . . Recycled Matter 205 | . 205 . . Retrieved Matter . | . . . . Retrieved Components . | . . . . Parts Scanalyzed . | . . . . Part Schematics Acquired . | . . . . Parts Damaged . | . . . . Bothacking | -11 -10 -10 -10 ------------ Run | Yrd Mat Min Sub Used RIF Installer . | . . . . Robots Hacked . | . . . . Non-combat . | . . . . Combat . | . . . . Robot Hacks Applied . | . . . . Relay Couplers Released . | . . . . Fabnet Peak Effective % . | . . . . Robots Rewired . | . . . . Allies Hacked . | . . . . Hacks Repelled . | . . . . Allies | -11 -10 -10 -10 -------- Run | Yrd Mat Min Sub Total Allies . | . . . . Largest Group . | . . . . Highest-Rated Group . | . . . . Highest-Rated Ally . | . . . . Total Orders . | . . . . Ally Attacks . | . . . . Total Damage . | . . . . Kills . | . . . . Allies Corrupted . | . . . . Allies Melted . | . . . . Intel | -11 -10 -10 -10 ------- Run | Yrd Mat Min Sub Robot Analysis Total . | . . . . Derelict Logs Recovered 1 | . . 1 . Drone Launches . | . . . . Drone Recoveries . | . . . . Exploration | -11 -10 -10 -10 ------------- Run | Yrd Mat Min Sub Turns Passed 4137 | 338 2209 1571 19 Spaces Moved 1821 | 288 958 570 5 Core 70 | 70 . . . Treads . | . . . . Legs 1226 | . 651 570 5 Wheels 525 | 218 307 . . Hover . | . . . . Flight . | . . . . Fastest Speed 50 | 50 80 260 260 Average Speed 204 | 76 209 260 260 Slowest Speed 260 | 150 260 260 260 Overloaded Moves . | . . . . Propulsion Burnouts . | . . . . Robots Hopped . | . . . . Cave-ins Triggered . | . . . . Exploration Rate (%) 47 | 13 85 91 2 Regions Visited 3 Branch Regions 2 Pre-discovered Areas . | . . . . Known Exits Taken 1 | . . 1 . Unknown Exits Taken 2 | 1 1 . . Scrap Searched 1 | . . 1 . Spaces Dug . | . . . . Terrain Destroyed 70 | . 38 16 16 Melee . | . . . . Projectile . | . . . . AOE 70 | . 38 16 16 Terrain Rammed . | . . . . Walls Destroyed . | . . . . Machines Disabled . | . . . . Actions | -11 -10 -10 -10 --------- Run | Yrd Mat Min Sub Total 2112 | 400 1083 621 8 Wait 155 | 97 44 13 1 Move 1818 | 287 957 569 5 Hop . | . . . . Pick Up 35 | 8 18 9 . Fast Attach . | . . . . Attach 14 | 5 8 1 . Detach 2 | . 1 1 . Swap 15 | . 7 8 . Drop 7 | 1 6 . . Fire 55 | 2 36 15 2 Melee 9 | . 5 4 . Ram . | . . . . Kick 2 | . 1 1 . Crush . | . . . . Escape Stasis . | . . . . Rewire . | . . . . Trap . | . . . . Miscellaneous . | . . . . Route ------- -11/Scrapyard -10/Materials (discovered 4 exits: [*Mat x3] / [*Min]) -10/Mines (discovered 2 exits: [*Mat] / *Sub) -10/Subcaves History --------- Turn | Location | Event 2 | -11/Scrapyard | Met Revision 17 93 | -11/Scrapyard | Discovered new exit (range 8) 339 | -11/Scrapyard | Entered Materials 340 | -10/Materials | Build established: Mutant 594 | -10/Materials | Discovered new exit (range 15) 1496 | -10/Materials | Discovered new exit (range 7) 1819 | -10/Materials | Discovered new exit (range 10) 2113 | -10/Materials | Discovered new exit (range 12) 2548 | -10/Materials | Entered Mines 2563 | -10/Mines | Core integrity fell below 50% 2859 | -10/Mines | Learned Materials garrison access intel 2865 | -10/Mines | Discovered new exit (range 6) 2985 | -10/Mines | Assembled infested the area 2990 | -10/Mines | Assisted by a Guerilla fighting off Assembled 3174 | -10/Mines | Discovered new exit (range 13) 3440 | -10/Mines | Received a Rocket Launcher from a helpful Derelict 4070 | -10/Mines | Identified exit to Subcaves 4119 | -10/Mines | Entered Subcaves 4129 | -10/Subcaves | Ambushed by Subdwellers from Twisted Machinery 4130 | -10/Subcaves | Core integrity fell below 20% 4138 | -10/Subcaves | Destroyed by IX-2W6(R) with Subdweller Beam Cannon Last Messages --------------- AMBIENT_HEAT=-10 GOAL=ESCAPE 1A-LLA(h): "Hey you don't look like the usual menacing locals. I'm on point searching for advanced tech we've heard is being developed in secret down here, seen anything like that?" 4W-WD1(u) builds Twisted Machinery. System corrupted: Matter fused (-7). J1-HMW(R) emerges from the Twisted Machinery. 1A-LLA(h) drops a Scrap Shield: "Protect yourself with this!" HV Slug penetrates Wall. J1-HMW(R) destroyed. 4W-WD1(u) builds Twisted Machinery. HV Slug penetrates IX-2W6(R). 4W-WD1(u) builds Twisted Machinery. Aluminum Leg destroyed. Assault Rifle destroyed. 4W-WD1(u) builds Twisted Machinery. Lgt. Nuclear Core destroyed. Map ----- +----------------------------------------------------+ | ?????????????????????????????????????????????????? | | ?????????????????????????????????????????????????? | | ?????????????????????????????????????????????????? | | ?????????????????????????????????????????????????? | | ?????????????????????????????????????????????????? | | ?????????????????????????????????????????????????? | | ?????????????????????????????????????????????????? | | ?????????????????????????????????????????????????? | | ?????????????????????????????????????????????????? | | ?????????????????????????????????????????????????? | | ?????????????????????????????????????????????????? | | ?????????????????????????????????????????????????? | | ?????????????????????????????????????????????????? | | ?????????????????????????????????????????????????? | | ????????????????????????? ##?????????????????????? | | ?????????????????????????""??????????????????????? | | ????????????????????????"" ??????????????????????? | | ????????????????????????# ???? ?????????????????? | | ????????????????????????" ??? #?????????????????? | | ?????????????????????#### #??? #?????????????????? | | ?????????????????##??# ##? #?????????????????? | | ??????????? ?????# ## ## ##????? ????????? | | ??????????? ## %" """ ""### ?????????? | | ?????????? " " "u #???????????? | | ??????????# *%R """ " #????????????? | | ????????????# =!! @ #???????????????????? | | ????????????# h #???????????????????? | | ????????????# ### ####;;###???????????????????? | | ?????????????????##?????####?????????????????????? | | ?????????????????????????????????????????????????? | | ?????????????????????????????????????????????????? | | ?????????????????????????????????????????????????? | | ?????????????????????????????????????????????????? | | ?????????????????????????????????????????????????? | | ?????????????????????????????????????????????????? | | ?????????????????????????????????????????????????? | | ?????????????????????????????????????????????????? | | ?????????????????????????????????????????????????? | | ?????????????????????????????????????????????????? | | ?????????????????????????????????????????????????? | | ?????????????????????????????????????????????????? | | ?????????????????????????????????????????????????? | | ?????????????????????????????????????????????????? | | ?????????????????????????????????????????????????? | | ?????????????????????????????????????????????????? | | ?????????????????????????????????????????????????? | | ?????????????????????????????????????????????????? | | ?????????????????????????????????????????????????? | | ?????????????????????????????????????????????????? | | ?????????????????????????????????????????????????? | +----------------------------------------------------+ Best States ------------- Heat Dissipation 25 Energy Generation 14 Energy Capacity 250 Matter Stores 300 Matter Capacity 300 Sight Range 16 Terrain Scan Density 10 Core Shielding 20 Weapon Shielding 33 Evasion (%) 50 Item Schematics ----------------- None Robot Schematics ------------------ None Fabricated ------------ Nothing Alien Tech Used ----------------- None Achievements -------------- I Survived The Infestation Challenges ------------ None Game ------ Seed PropulsionLauncherStick Manual? 0 Play Time 00:27:11 Cumulative 1.1 hours Start 2024.03.31 @ 12:53:31 End 2024.03.31 @ 13:20:48 Sessions 1 Manual Loads 0 Difficulty Rogue Special Mode None Game No. 2 Rogue 2 Adventurer 0 Explorer 0 Win Type - Total 0 Types 0/0/0/0/0/0/0/0/0 Lore% 0 Gallery% 3 Achievement% 2 Wizard Run 0 Options --------- Layout 1 ASCII 0 Keyboard 0 Movement Arrows Keybinds 0 Fullscreen 1 Font 24/Smallcaps Map View 50x35 Zoom Use 0% Tactical HUD 0 Map Filters NONE Filters NONE Steam 1 RUN: 79381b04-a65d-4c4a-b4bc-af24a2358f2a